bitfinex-derivatives/quotes_ETHF0:USTF0_20260120
["timestamp","ask_amount","ask_price","bid_price","bid_amount"]
[1768901631825,0.00285307,3093.2,3091.8,3.65009483]
[1768901632423,0.00285307,3093.2,3091.8,3.48822483]
[1768901632624,3.62296595,3094.0,3092.4,0.16183]
[1768901633723,3.62540649,3094.0,3092.4,0.16183]
[1768901634134,3.62540649,3094.0,3092.4,3.68152753]
[1768901635226,3.62540649,3094.0,3092.0,0.16185]
[1768901635434,3.62540649,3094.0,3092.0,3.68154753]
[1768901635830,3.52853408,3093.8,3092.0,0.16185]
[1768901636030,3.52853408,3093.8,3091.6,3.51969753]
[1768901636031,0.00244054,3094.0,3092.5,3.51969753]
[1768901636230,0.00244054,3094.0,3092.6,3.68151753]
[1768901638338,0.00244054,3094.0,3092.8,3.68150753]
[1768901640230,0.16171,3094.9,3093.1,0.1618]
[1768901640439,0.84568407,3094.8,3093.2,3.51969753]
[1768901640635,3.52853408,3095.4,3093.4,3.51969753]
[1768901640833,0.8457417,3095.3,3093.4,3.51969753]
[1768901641028,3.52853408,3095.8,3093.8,3.51969753]
[1768901641233,3.69020408,3095.6,3093.8,3.52323962]
[1768901641542,3.52853408,3095.4,3093.8,3.52323962]
[1768901641839,0.00384547,3095.8,3093.8,3.52323962]
[1768901642039,0.84460321,3095.7,3093.8,3.52323962]
[1768901642241,0.00384547,3095.8,3093.8,3.52323962]
[1768901642443,0.84382693,3095.7,3093.8,3.52323962]
[1768901642644,0.00384547,3095.8,3093.8,3.52323962]
[1768901642838,4.37236116,3095.7,3093.8,3.52323962]
[1768901643039,3.52853408,3095.7,3093.8,3.52323962]
[1768901645347,0.00384547,3095.8,3093.8,3.52323962]
[1768901645348,0.00384547,3095.8,3094.0,3.51969753]
[1768901646335,3.53237955,3095.8,3094.0,3.51969753]
[1768901648060,0.00384547,3095.8,3094.0,3.51969753]
[1768901648357,0.00384547,3095.8,3094.0,3.68144753]
[1768901648548,0.00384547,3095.8,3094.2,3.51969753]
[1768901649155,0.00384547,3095.8,3094.3,4.24440529]
[1768901649451,3.52853408,3096.7,3094.6,3.68141753]
[1768901649955,3.52853408,3097.2,3095.0,3.51969753]
[1768901650155,3.52853408,3097.2,3095.2,3.51969753]
[1768901650453,3.53270438,3097.2,3095.2,3.51969753]
[1768901654958,0.0041703,3097.2,3095.4,3.51969753]
[1768901655158,0.0041703,3097.2,3095.3,0.16168]
[1768901655159,0.0041703,3097.2,3095.6,3.51969753]
[1768901655452,0.0041703,3097.2,3096.0,3.51969753]
[1768901655758,0.16154,3098.0,3096.0,3.683979]
[1768901655959,0.16154,3098.0,3096.2,3.51969753]
[1768901656652,0.16486881,3098.0,3096.2,3.51969753]
[1768901657356,0.00332881,3098.0,3096.6,3.68130753]
[1768901657554,7.35982485,3099.0,3096.0,5.32463147]
[1768901657555,6.76253408,3099.0,3096.8,3.68129753]
[1768901657772,6.76253408,3099.0,3096.0,5.32463147]
[1768901657773,3.52853408,3099.0,3097.0,3.51969753]
[1768901658660,3.53237505,3099.0,3096.8,3.51969753]
[1768901658860,3.69004408,3098.7,3096.8,3.51969753]
[1768901659158,3.52853408,3098.5,3096.8,3.51969753]
[1768901659552,0.00384097,3099.0,3096.3,3.51969753]
[1768901659553,3.69006408,3098.2,3096.3,3.51969753]
[1768901660554,3.69007408,3098.1,3096.3,3.51969753]
[1768901661866,3.52853408,3097.6,3096.0,0.00263147]
[1768901662067,3.52853408,3097.6,3096.0,3.522329]
[1768901662258,3.52853408,3098.2,3096.2,3.51969753]
[1768901662463,3.52853408,3098.7,3096.6,3.51969753]
[1768901663663,3.50515685,3098.5,3096.6,3.68130753]
[1768901663865,3.66668685,3098.4,3096.1,3.3633825]
[1768901664061,3.50515685,3098.2,3096.1,3.3633825]
[1768901665266,3.66669685,3098.1,3096.1,3.3633825]
[1768901665466,0.16154,3098.0,3096.1,3.3633825]
[1768901666164,3.50515685,3098.1,3096.3,3.3633825]
[1768901666362,3.66666685,3098.6,3096.3,3.5250125]
[1768901666560,3.66666685,3098.6,3096.7,3.3633825]
[1768901666863,3.66666685,3098.6,3096.7,3.5249925]
[1768901667062,0.16151,3098.6,3096.7,3.5249925]
[1768901668668,0.00384097,3099.0,3096.0,0.00263147]
[1768901668669,0.00384097,3099.0,3097.0,3.3633825]
[1768901668960,0.00384097,3099.0,3097.0,3.5249725]
[1768901669161,3.50899782,3099.0,3097.0,3.3633825]
[1768901669362,3.50515685,3098.8,3097.0,3.3633825]
[1768901669668,3.66666685,3098.7,3096.5,3.3633825]
[1768901670171,3.66666685,3098.7,3096.5,3.5250025]
[1768901671472,0.16152,3098.5,3096.5,5.6100025]
[1768901671969,0.16152,3098.5,3096.6,3.3633825]
[1768901672369,0.00384097,3099.0,3096.6,3.3633825]
[1768901672370,3.66667685,3098.4,3096.6,3.3633825]
[1768901672571,3.66668685,3098.3,3096.6,3.3633825]
[1768901672873,3.50515685,3097.9,3096.1,3.3633825]
[1768901673070,0.16156,3097.7,3096.1,3.3633825]
[1768901673373,3.66671685,3097.7,3096.0,0.00263147]
[1768901673573,3.50515685,3097.5,3096.0,0.00263147]
[1768901673969,3.66672685,3097.5,3096.0,0.00263147]
[1768901679476,4.33004571,3097.4,3096.0,0.00263147]
[1768901679671,3.50515685,3097.4,3096.0,0.00263147]
[1768901680967,0.16157,3097.5,3096.0,3.36601397]
[1768901681570,1.72384892,3098.0,3096.0,3.36601397]
[1768901681765,0.82516542,3097.9,3096.0,3.36601397]
[1768901681976,3.50515685,3097.5,3096.0,0.00263147]
[1768901682176,4.33036996,3097.4,3096.0,0.00263147]
[1768901682378,3.50515685,3097.4,3096.0,0.00263147]
[1768901683378,4.2917201,3097.3,3096.0,0.00263147]
[1768901683574,3.46633318,3097.3,3096.0,0.00263147]
[1768901683981,3.62791318,3097.3,3096.0,0.00263147]
[1768901684984,3.62792318,3097.1,3096.0,0.00263147]
[1768901685176,3.62793318,3097.0,3096.0,0.00263147]
[1768901686475,3.46633318,3097.0,3096.0,0.00263147]
[1768901686681,3.62793318,3096.9,3096.0,0.00263147]
[1768901687873,3.46633318,3096.1,3094.0,5.64811567]
[1768901688073,4.05725608,3096.8,3094.0,3.34119942]
[1768901688074,3.46633318,3095.8,3094.0,3.34119942]
[1768901688277,3.46633318,3095.6,3093.7,0.16176]
[1768901688484,3.46633318,3095.6,3093.7,15.06176]
[1768901688685,3.46633318,3095.6,3093.7,18.40295942]
[1768901688886,3.47039652,3095.6,3093.7,18.40549625]
[1768901689785,3.47039652,3095.6,3093.7,3.50549625]
[1768901691684,0.00406334,3095.6,3093.7,3.50549625]
[1768901695489,3.66165272,3095.6,3093.7,3.50549625]
[1768901700591,3.66165272,3095.6,3093.7,3.34373625]
[1768901700895,3.81927938,3095.3,3093.7,5.44073625]
[1768901701096,3.81927938,3095.3,3093.7,3.34373625]
[1768901701397,3.81927938,3095.3,3093.7,5.44073625]
[1768901701596,0.00406334,3095.6,3093.7,0.00253683]
[1768901701597,3.81927938,3095.2,3093.7,0.00253683]
[1768901701797,3.81928938,3095.0,3093.7,0.00253683]
[1768901703190,0.00406334,3095.6,3093.7,0.00253683]
[1768901703191,3.65758938,3095.5,3093.7,0.00253683]
[1768901703987,0.16573334,3095.6,3093.7,3.59327402]
[1768901705401,0.00406334,3095.6,3094.2,3.42897719]
[1768901707199,0.00406334,3095.6,3094.4,3.42897719]
[1768901707596,0.00406334,3095.6,3094.4,5.52597719]
[1768901707995,0.00406334,3095.6,3094.4,3.42897719]
[1768901709691,0.00406334,3095.6,3094.4,3.59070719]
[1768901710092,0.00406334,3095.6,3094.6,3.42897719]
[1768901711197,0.00406334,3095.6,3094.6,3.59069719]
[1768901711396,3.65758938,3096.6,3094.6,3.59069719]
[1768901712397,3.66176365,3096.6,3094.6,3.59069719]
[1768901713403,4.50468857,3096.5,3094.6,3.59069719]
[1768901713700,3.65758938,3096.5,3094.7,2.099]
[1768901714300,3.65758938,3096.5,3094.7,2.26071]
[1768901714504,0.16579427,3096.6,3094.8,3.59068719]
[1768901715496,0.84787684,3096.5,3094.8,3.59068719]
[1768901715699,0.16579427,3096.6,3094.8,3.59068719]
[1768901717005,4.5057507,3096.5,3094.8,3.59068719]
[1768901717205,0.84816132,3096.4,3094.8,3.59068719]
[1768901717802,4.5057507,3096.4,3094.8,3.59068719]
[1768901717992,0.84816132,3096.3,3094.8,3.59068719]
[1768901719000,4.5057507,3096.3,3094.8,3.42897719]
[1768901719200,3.65758938,3096.3,3094.8,3.42897719]
[1768901723306,0.16162,3096.5,3094.8,3.42897719]
[1768901723510,4.4599358,3096.4,3094.8,3.42897719]
[1768901723702,0.84825757,3096.3,3094.8,3.42897719]
[1768901724005,4.4599358,3096.3,3094.6,0.16172]
[1768901724210,3.61167823,3096.0,3094.3,3.32708128]
[1768901725418,0.16164,3096.1,3094.3,3.48881128]
[1768901725606,0.16164,3096.1,3094.5,3.32708128]
[1768901726203,3.61167823,3096.5,3094.5,3.48880128]
[1768901726408,0.84841248,3096.4,3094.5,3.48880128]
[1768901726612,0.84841248,3096.3,3094.5,3.48880128]
[1768901726810,3.61167823,3096.5,3094.5,3.48880128]
[1768901727112,0.84840291,3096.4,3094.5,3.48880128]
[1768901727312,0.84840291,3096.3,3094.5,3.48880128]
[1768901727517,3.61167823,3096.5,3094.5,3.48880128]
[1768901727719,0.8484805,3096.4,3094.5,3.48880128]
[1768901728012,0.8484805,3096.3,3094.5,3.48880128]
[1768901728206,3.61167823,3096.5,3094.5,3.48880128]
[1768901728405,0.84846365,3096.4,3094.5,3.48880128]
[1768901728607,0.84846365,3096.3,3094.5,3.48880128]
[1768901728807,3.61167823,3096.5,3094.5,3.48880128]
[1768901729012,0.8484706,3096.4,3094.5,3.48880128]
[1768901729208,0.8484706,3096.3,3094.7,3.32708128]
[1768901729416,3.61167823,3096.5,3094.7,3.32708128]
[1768901729615,0.8485699,3096.4,3094.7,3.32708128]
[1768901729816,0.8485699,3096.3,3094.7,3.32708128]
[1768901730015,0.16579427,3096.6,3094.7,3.32708128]
[1768901730318,0.84857261,3096.5,3094.7,3.32708128]
[1768901730507,0.84857261,3096.4,3094.7,3.32708128]
[1768901730708,0.84857261,3096.3,3094.7,3.48879128]
[1768901730908,0.16579427,3096.6,3094.7,3.48879128]
[1768901731111,0.84847823,3096.5,3094.7,3.48879128]
[1768901731310,0.84847823,3096.4,3094.7,3.48879128]
[1768901731610,0.84847823,3096.3,3094.7,3.48879128]
[1768901731810,0.16579427,3096.6,3094.7,3.48879128]
[1768901732011,0.84875005,3096.5,3094.7,3.48879128]
[1768901732318,0.84875005,3096.4,3094.7,3.48879128]
[1768901732516,0.84875005,3096.3,3094.7,3.48879128]
[1768901732722,4.46042828,3096.3,3094.7,3.48879128]
[1768901733018,0.84875005,3096.2,3094.7,3.48879128]
[1768901740632,3.94477608,3096.1,3094.6,2.89665852]
[1768901740829,4.46042828,3096.0,3094.5,2.89665852]
[1768901741027,0.84875005,3095.9,3094.5,2.89665852]
[1768901741334,0.84875005,3095.9,3094.4,4.99565852]
[1768901741723,0.84875005,3095.9,3094.4,8.3227398]
[1768901741921,0.84875005,3095.9,3094.5,3.32708128]
[1768901742531,3.77330823,3096.3,3094.5,3.32708128]
[1768901742721,1.18426233,3096.2,3094.5,3.32708128]
[1768901742921,1.18426233,3096.1,3094.5,6.2237398]
[1768901743124,0.85115987,3096.0,3094.5,3.32708128]
[1768901743324,0.85115987,3095.9,3094.5,3.32708128]
[1768901743524,3.77330823,3096.3,3094.5,3.32708128]
[1768901743724,1.18426693,3096.2,3094.6,3.35043889]
[1768901743927,1.18426693,3096.1,3094.6,3.35043889]
[1768901744121,0.85116536,3096.0,3094.6,3.35043889]
[1768901744335,3.77330823,3096.3,3094.6,3.35043889]
[1768901744336,0.85116536,3095.9,3094.6,3.35043889]
[1768901744530,0.16164,3096.2,3094.6,3.35043889]
[1768901744834,1.1842328,3096.1,3094.6,3.35043889]
[1768901745034,0.85113614,3096.0,3094.6,3.35043889]
[1768901745246,0.85113614,3095.9,3094.6,3.35043889]
[1768901745537,3.62497391,3096.1,3094.6,3.35043889]
[1768901745722,0.85118123,3096.0,3094.6,3.35043889]
[1768901745929,0.85118123,3095.9,3094.6,3.35043889]
[1768901746127,3.62497391,3096.1,3094.6,3.35043889]
[1768901746327,0.85129295,3096.0,3094.6,3.35043889]
[1768901746628,0.85129295,3095.9,3094.6,3.35043889]
[1768901746827,3.62497391,3096.1,3094.6,3.35043889]
[1768901747037,0.85129275,3096.0,3094.6,3.35043889]
[1768901747237,0.85129275,3095.9,3094.6,3.35043889]
[1768901747536,3.62497391,3096.1,3094.6,3.35043889]
[1768901747737,0.85129624,3096.0,3094.6,3.35043889]
[1768901748033,0.85129624,3095.9,3094.6,3.35043889]
[1768901748239,3.62497391,3096.1,3094.6,3.35043889]
[1768901748541,1.18443884,3096.0,3094.6,3.35043889]
[1768901748836,0.85128579,3095.9,3094.6,3.35043889]
[1768901749032,0.85128579,3095.8,3094.4,2.89665852]
[1768901749330,3.78664391,3095.5,3093.9,6.95198046]
[1768901749533,0.85128579,3095.4,3093.8,0.16176]
[1768901749836,0.85128579,3095.3,3093.8,0.16176]
[1768901750038,3.62497391,3095.4,3093.8,0.16176]
[1768901750230,1.72384892,3095.8,3093.7,6.24963424]
[1768901750231,4.63742673,3095.3,3093.7,6.24963424]
[1768901750428,3.78665391,3095.3,3093.7,3.35297572]
[1768901750839,0.85027165,3095.2,3093.7,3.35297572]
[1768901751139,3.78665391,3095.3,3093.7,3.35297572]
[1768901751727,0.84987228,3095.2,3093.7,3.35297572]
[1768901751930,2.90399909,3096.2,3093.7,3.35297572]
[1768901751931,3.78667391,3095.0,3093.7,0.00253683]
[1768901752133,4.47484619,3094.9,3093.7,0.00253683]
[1768901752330,3.62497391,3094.9,3093.7,0.00253683]
[1768901753636,1.825,3095.3,3093.7,0.00253683]
[1768901753637,4.68421107,3094.8,3093.7,0.00253683]
[1768901753935,3.67386255,3094.7,3093.7,0.00253683]
[1768901760642,3.83557255,3094.7,3093.7,0.00253683]
[1768901760837,3.67386255,3094.5,3092.7,3.33713355]
[1768901761046,3.83559255,3094.5,3092.7,3.33713355]
[1768901761936,3.83559255,3094.5,3092.7,3.34081979]
[1768901766240,3.83556255,3094.9,3092.8,3.33713355]
[1768901766445,3.83556255,3094.9,3093.1,3.33713355]
[1768901770543,3.83556255,3094.9,3093.1,3.49893355]
[1768901771130,7.54880175,3095.6,3093.3,3.49891355]
[1768901771131,3.67386255,3095.3,3093.3,3.49891355]
[1768901771337,3.67386255,3095.3,3093.6,3.33713355]
[1768901771538,3.235,3095.6,3093.9,3.33713355]
[1768901772742,3.83552255,3095.7,3093.9,3.33713355]
[1768901773846,3.67386255,3096.1,3094.3,3.33713355]
[1768901774846,0.16163,3096.3,3094.3,3.33713355]
[1768901775046,0.16163,3096.3,3094.5,3.33713355]
[1768901775450,3.83549255,3096.3,3094.5,3.33713355]
[1768901779654,3.67386255,3096.3,3094.5,3.49885355]
[1768901781551,0.00417427,3096.6,3094.5,3.49885355]
[1768901781754,0.84787326,3096.5,3094.7,3.33713355]
[1768901781954,0.00417427,3096.6,3094.7,3.33713355]
[1768901782154,0.84786906,3096.5,3094.7,3.33713355]
[1768901782355,0.00417427,3096.6,3094.7,3.49884355]
[1768901782649,0.84760049,3096.5,3094.7,3.49884355]
[1768901782857,0.16579427,3096.6,3094.7,3.49884355]
[1768901785057,3.74892596,3096.6,3094.7,3.49884355]
[1768901787657,3.74892596,3096.6,3094.7,3.33713355]
[1768901788656,3.74892596,3096.6,3095.0,3.35385398]
[1768901788860,3.74892596,3096.6,3095.0,3.35699198]
[1768901793058,3.74475169,3096.5,3095.0,3.35699198]
[1768901793261,3.74475169,3096.5,3095.0,0.003138]
[1768901798367,0.16162,3096.5,3095.0,3.35699198]
[1768901799075,3.74475169,3096.5,3095.0,3.35699198]
[1768901800067,4.43240614,3096.4,3095.0,3.35699198]
[1768901800273,3.58313169,3096.4,3095.0,3.35699198]
[1768901801061,0.84960198,3096.3,3095.0,3.35699198]
[1768901801366,3.58313169,3096.4,3095.0,3.35699198]
[1768901801572,0.84993796,3096.3,3095.0,3.35699198]
[1768901801768,3.58313169,3096.4,3095.0,3.35699198]
[1768901801971,0.84982435,3096.3,3095.0,3.35699198]
[1768901802171,3.58313169,3096.4,3095.0,3.35699198]
[1768901802364,0.84993897,3096.3,3095.0,3.35699198]
[1768901802564,3.58313169,3096.4,3095.0,3.35699198]
[1768901802765,0.84994128,3096.3,3095.0,3.35699198]
[1768901802966,3.58313169,3096.4,3095.0,3.35699198]
[1768901803162,0.85039123,3096.3,3095.0,3.35699198]
[1768901803366,0.85039123,3096.2,3095.0,3.35699198]
[1768901803566,3.58313169,3096.4,3095.0,3.35699198]
[1768901803767,0.85038343,3096.3,3095.0,3.35699198]
[1768901803972,0.85038343,3096.2,3095.0,3.35699198]
[1768901804178,3.58313169,3096.4,3095.0,3.35699198]
[1768901804375,0.85027121,3096.3,3095.0,3.35699198]
[1768901804564,0.85027121,3096.2,3095.0,3.35699198]
[1768901804768,3.58313169,3096.4,3095.0,0.003138]
[1768901804968,4.50479195,3096.3,3095.0,0.003138]
[1768901805169,0.85027215,3096.2,3095.0,0.003138]
[1768901805983,4.66643195,3096.2,3095.0,0.003138]
[1768901806276,4.83698611,3096.1,3095.0,0.003138]
[1768901806470,4.50479195,3096.0,3095.0,0.003138]
[1768901806671,0.85027215,3095.9,3095.0,0.003138]
[1768901806879,3.6545198,3096.0,3095.0,0.003138]
[1768901807176,4.50473689,3095.9,3095.0,0.003138]
[1768901807478,3.6545198,3095.9,3095.0,0.003138]
[1768901811377,3.8161798,3095.8,3094.3,2.89665852]
[1768901811684,3.8161798,3095.8,3094.0,2.89665852]
[1768901811685,3.6545198,3095.4,3094.0,2.89665852]
[1768901811877,3.6545198,3095.2,3093.7,2.89665852]
[1768901812079,3.6545198,3095.2,3093.6,3.05842852]
[1768901812483,3.6545198,3095.2,3093.6,3.06239208]
[1768901812677,3.6545198,3095.2,3093.6,0.16573356]
[1768901813681,3.6545198,3095.2,3093.6,0.00396356]
[1768901819683,3.81311075,3095.0,3093.6,0.00396356]
[1768901821882,3.65141075,3094.5,3093.6,0.00396356]
[1768901822087,3.65141075,3094.5,3092.7,6.58020089]
[1768901823186,3.65141075,3094.5,3092.7,6.58275802]
[1768901823580,3.81314075,3094.5,3092.7,3.23655713]
[1768901824084,3.65141075,3094.3,3092.7,3.23655713]
[1768901824286,3.6544123,3094.3,3092.7,3.23655713]
[1768901825088,3.6544123,3094.3,3092.7,0.00255713]
[1768901826492,3.65141075,3094.0,3092.7,0.00255713]
[1768901826987,4.87954834,3093.8,3092.7,0.00255713]
[1768901827183,3.65141075,3093.7,3092.7,0.00255713]
[1768901831492,0.00300155,3094.3,3093.3,1.22813759]
[1768901832689,0.00300155,3094.3,3093.0,1.22813759]
[1768901835199,0.00300155,3094.3,3092.7,4.57689561]
[1768901835200,4.87954834,3094.2,3092.7,4.57689561]
[1768901835396,4.87954834,3093.9,3092.7,0.00255713]
[1768901835796,3.65141075,3093.9,3092.7,0.00255713]
[1768901835995,3.65141075,3093.9,3092.7,1.23069472]
[1768901838797,3.65141075,3093.9,3092.7,0.00255713]
[1768901839205,3.65141075,3093.9,3092.7,1.23069472]
[1768901839400,0.16174,3094.2,3093.0,1.22813759]
[1768901839904,3.81315075,3094.2,3093.0,1.22813759]
[1768901840306,4.87954834,3093.9,3092.7,0.00255713]
[1768901840694,3.65141075,3093.8,3092.7,0.00255713]
[1768901842510,3.65141075,3093.5,3092.7,0.00255713]
[1768901842704,3.65141075,3093.5,3091.9,0.16186]
[1768901842908,1.23113914,3094.3,3091.7,1.22813759]
[1768901842909,3.65141075,3093.2,3091.7,1.22813759]
[1768901843210,3.57748161,3092.9,3091.5,3.34620089]
[1768901843807,3.57748161,3092.9,3091.5,3.34876958]
[1768901844611,3.57748161,3092.9,3091.5,4.57690717]
[1768901845308,3.57748161,3092.9,3091.5,3.34876958]
[1768901846210,3.57748161,3092.9,3091.7,1.22813759]
[1768901848301,3.57748161,3092.9,3091.5,0.00256869]
[1768901850605,3.57748161,3092.9,3091.5,1.23070628]
[1768901851712,3.57748161,3092.9,3091.5,0.00256869]
[1768901851902,3.57748161,3092.9,3091.5,1.23070628]
[1768901853005,3.57748161,3092.9,3091.8,1.22813759]
[1768901853709,3.57748161,3093.7,3092.2,1.22813759]
[1768901853910,0.84787677,3093.6,3092.5,1.22813759]
[1768901854110,3.57748161,3093.7,3092.5,1.22813759]
[1768901854615,3.57748161,3094.1,3092.5,1.22813759]
[1768901854802,0.84809624,3094.0,3092.5,1.22813759]
[1768901855008,3.57748161,3094.1,3092.8,1.22813759]
[1768901855219,0.00300155,3094.3,3093.1,1.22813759]
[1768901855510,1.22813759,3093.7,3092.5,0.16183]
[1768901855712,1.22813759,3093.8,3092.5,0.16183]
[1768901856311,1.22813759,3093.8,3092.4,3.56494572]
[1768901856312,1.22813759,3093.7,3092.4,3.56494572]
[1768901856518,3.57748161,3093.6,3092.0,1.22813759]
[1768901857215,3.57748161,3093.6,3091.9,3.56494572]
[1768901857216,3.57748161,3093.6,3092.3,1.22813759]
[1768901858117,3.73923161,3094.0,3092.6,1.22813759]
[1768901858317,0.85042616,3093.9,3092.6,1.22813759]
[1768901858515,3.57748161,3094.0,3092.6,1.22813759]
[1768901858721,0.85041783,3093.9,3092.6,1.22813759]
[1768901858913,3.57748161,3094.0,3092.6,1.22813759]
[1768901859421,4.42786561,3093.9,3092.4,1.22813759]
[1768901859621,3.57748161,3093.9,3092.4,1.22813759]
[1768901861114,3.57748161,3093.9,3092.4,4.79308331]
[1768901862518,3.74222316,3094.3,3092.5,3.56494572]
[1768901862724,1.22813759,3094.1,3092.5,3.56494572]
[1768901862924,0.85046168,3094.0,3092.5,3.56494572]
[1768901864231,0.00300155,3094.3,3093.2,1.22813759]
[1768901864721,0.00300155,3094.3,3092.9,4.554031]
[1768901867626,0.00300155,3094.3,3093.2,1.22813759]
[1768901867825,3.31745985,3095.2,3093.6,3.32589341]
[1768901868119,3.31745985,3095.0,3093.5,1.22813759]
[1768901868526,3.31745985,3094.7,3093.1,1.22813759]
[1768901868726,3.31745985,3094.4,3092.8,4.554031]
[1768901868927,3.32015793,3094.4,3092.8,4.554031]
[1768901869322,3.31745985,3094.1,3092.7,1.22813759]
[1768901870926,3.31745985,3094.1,3092.4,0.16183]
[1768901870927,3.31745985,3094.0,3092.4,1.38996759]
[1768901871623,3.31745985,3094.0,3092.3,3.32589341]
[1768901871828,4.54559744,3093.8,3092.3,3.32589341]
[1768901873430,3.40155745,3093.4,3092.0,1.22813759]
[1768901873633,3.40155745,3093.4,3091.9,0.16186]
[1768901874127,3.40155745,3093.4,3091.7,1.22813759]
[1768901876130,3.40155745,3093.4,3092.0,1.22813759]
[1768901876623,4.62969504,3093.3,3092.0,1.22813759]
[1768901876822,3.40155745,3093.3,3091.5,3.35082617]
[1768901879033,3.40155745,3093.3,3091.7,3.34825748]
[1768901879335,3.40155745,3093.8,3092.0,3.34825748]
[1768901880422,3.40155745,3093.6,3091.9,0.16186]
[1768901881737,3.40155745,3093.6,3091.5,3.35082617]
[1768901882331,3.40155745,3093.6,3091.6,0.16187]
[1768901882536,1.15633323,3094.1,3091.6,0.16187]
[1768901882537,3.40155745,3093.4,3091.6,0.16187]
[1768901883839,3.56333745,3093.4,3091.6,0.16187]
[1768901886036,3.56333745,3093.4,3091.6,3.51012748]
[1768901887530,3.40155745,3093.4,3091.7,3.34825748]
[1768901887741,3.40155745,3093.9,3092.0,3.51011748]
[1768901888037,0.84933923,3093.8,3092.0,3.51011748]
[1768901888235,3.40155745,3093.9,3092.0,3.51011748]
[1768901888430,4.25081179,3093.8,3092.0,3.51011748]
[1768901888638,4.25081179,3093.7,3092.0,3.51011748]
[1768901888836,3.40155745,3093.7,3092.0,0.16186]
[1768901889239,3.40155745,3093.7,3092.1,3.51010748]
[1768901889545,3.40155745,3093.5,3091.8,0.16187]
[1768901889741,3.40155745,3093.5,3091.8,3.51012748]
[1768901890238,3.40155745,3093.5,3092.0,3.34825748]
[1768901890440,3.40155745,3093.5,3091.5,0.00256869]
[1768901890441,3.40155745,3094.0,3092.1,3.51010748]
[1768901891343,3.40155745,3094.0,3092.5,0.16183]
[1768901891539,3.40425553,3094.4,3092.6,3.51007748]
[1768901891931,3.40425553,3094.4,3092.9,3.51006748]
[1768901892146,0.00269808,3094.4,3092.9,3.51006748]
[1768901896749,3.40425553,3094.4,3092.9,0.16181]
[1768901896950,3.40425553,3094.4,3092.6,2.084]
[1768901899647,3.40425553,3094.4,3092.5,5.59608748]
[1768901900347,3.40425553,3094.4,3092.7,0.16182]
[1768901900546,0.00269808,3094.4,3092.9,3.34825748]
[1768901901238,0.00269808,3094.4,3092.9,5.43525748]
[1768901901842,0.00269808,3094.4,3093.0,3.34825748]
[1768901904447,0.00269808,3094.4,3093.2,3.11060988]
[1768901912053,0.00269808,3094.4,3093.4,3.27238988]
[1768901912251,3.16322731,3095.4,3093.4,3.11060988]
[1768901912446,3.16322731,3095.4,3093.6,3.11060988]
[1768901913046,4.897,3095.8,3093.6,3.11060988]
[1768901913047,3.16322731,3095.8,3093.6,3.11060988]
[1768901913255,0.00291929,3095.4,3094.0,3.27235988]
[1768901913446,3.1661466,3095.4,3094.0,0.16551734]
[1768901914056,3.1661466,3095.4,3094.0,0.00376734]
[1768901919578,3.16322731,3095.0,3093.2,3.11060988]
[1768901920657,3.16322731,3095.0,3093.2,3.1142331]
[1768901922069,3.16322731,3094.8,3093.2,0.00362322]
[1768901927066,3.16322731,3094.8,3093.2,3.12736732]
[1768901937179,3.16322731,3094.8,3093.2,3.28915732]
[1768901938182,3.13989476,3095.2,3093.4,0.16178]
[1768901938483,0.84345341,3095.1,3093.5,3.15167024]
[1768901938671,3.13989476,3095.2,3093.5,3.15167024]
[1768901938876,3.13989476,3095.2,3093.7,2.98990024]
[1768901939981,0.00291929,3095.4,3093.9,3.15166024]
[1768901940884,0.00291929,3095.4,3094.1,4.21628271]
[1768901941183,0.00291929,3095.4,3094.2,2.98990024]
[1768901942780,0.00291929,3095.4,3094.1,1.22638247]
[1768901944091,0.00291929,3095.4,3094.2,2.98990024]
[1768901944280,3.13989476,3096.1,3094.5,1.22638247]
[1768901944481,0.84335381,3096.0,3094.5,1.22638247]
[1768901944682,3.13989476,3096.1,3094.5,1.22638247]
[1768901944889,0.84333125,3096.0,3094.5,1.22638247]
[1768901945095,3.13989476,3096.1,3094.5,1.22638247]
[1768901945280,0.84313231,3096.0,3094.5,1.22638247]
[1768901945486,3.14296758,3096.1,3094.5,1.22638247]
[1768901945686,0.84313188,3096.0,3094.5,1.22638247]
[1768901945989,3.14296758,3096.1,3094.5,1.22638247]
[1768901946591,3.14296758,3096.1,3094.5,4.21628271]
[1768901946987,3.14296758,3096.1,3094.5,2.98990024]
[1768901951784,3.14296758,3096.1,3094.7,2.98990024]
[1768901951785,0.00307282,3096.1,3094.7,2.98990024]
[1768901955196,0.00307282,3096.1,3094.2,2.89665852]
[1768901955197,3.14296758,3096.1,3094.2,7.96555876]
[1768901955491,3.14296758,3096.1,3094.2,5.23064024]
[1768901955698,3.14296758,3096.1,3094.3,3.15163024]
[1768901959095,0.00307282,3096.1,3094.5,2.98990024]
[1768901959890,0.00307282,3096.1,3094.7,2.98990024]
[1768901960686,0.00307282,3096.1,3094.7,3.15161024]
[1768901961092,0.00307282,3096.1,3094.9,2.98990024]
[1768901964302,2.98472195,3096.9,3095.3,2.96302751]
[1768901965185,2.98826107,3096.9,3095.3,2.96302751]
[1768901966804,2.98826107,3096.9,3095.1,0.16169]
[1768901966995,2.98472195,3096.7,3095.3,1.22583978]
[1768901967901,2.98472195,3096.7,3095.1,1.38752978]
[1768901970301,2.98472195,3096.7,3095.4,1.22583978]
[1768901970502,2.98472195,3096.7,3095.4,1.22979725]
[1768901971294,2.98472195,3096.7,3095.4,0.00395747]
[1768901971597,2.98472195,3096.7,3095.4,1.22979725]
[1768901973605,2.98472195,3096.7,3095.4,0.00395747]
[1768901973904,2.98472195,3096.7,3095.4,1.22979725]
[1768901976106,2.98472195,3096.7,3095.7,1.22583978]
[1768901976504,2.98472195,3096.7,3095.6,1.22583978]
[1768901978109,0.16513912,3096.9,3095.9,1.22583978]
[1768901978406,0.83984268,3096.8,3095.9,1.22583978]
[1768901978704,0.16513912,3096.9,3095.9,1.22583978]
[1768901979010,0.83984991,3096.8,3095.9,1.22583978]
[1768901979206,0.16513912,3096.9,3095.9,1.22583978]
[1768901979503,0.00353912,3096.9,3096.2,1.22583978]
[1768901981311,0.00353912,3096.9,3095.9,1.22583978]
[1768901981512,0.00353912,3096.9,3096.2,1.22583978]
[1768901983205,3.04375449,3097.3,3095.6,0.16167]
[1768901983412,3.04375449,3097.0,3095.6,1.38750978]
[1768901984211,3.04687742,3097.0,3095.6,1.38750978]
[1768901985111,3.04687742,3097.0,3095.9,1.22583978]
[1768901987811,0.00312293,3097.0,3096.2,1.22583978]
[1768901988510,3.04375449,3097.8,3096.5,1.22583978]
[1768901988810,3.04375449,3097.5,3095.9,1.22583978]
[1768901989011,0.84004657,3097.4,3096.2,1.22583978]
[1768901989210,0.84009001,3097.3,3096.2,1.22583978]
[1768901989410,3.04375449,3097.5,3096.2,1.22583978]
[1768901989609,0.84008618,3097.4,3096.2,1.22583978]
[1768901989811,0.84008618,3097.3,3096.2,1.22583978]
[1768901990011,3.04707283,3097.5,3096.2,1.22583978]
[1768901990212,0.84008558,3097.4,3096.2,1.22583978]
[1768901990414,0.00331834,3097.5,3096.8,1.22583978]